fUSD/lending_fUSD_20240114
["ID","MTS","AMOUNT","RATE_DAILY","PERIOD"]
[311556538,1705236635138,-1252.0,0.00023,2]
[311556539,1705236635148,-1234.0,0.00023,2]
[311556540,1705236635158,-1932.0,0.00023,2]
[311556541,1705236635168,-463.538,0.00023,2]
[311556542,1705236635178,-999.097,0.00023,2]
[311556543,1705236635188,-625.693,0.00023,2]
[311556544,1705236635199,-322.365,0.00023,2]
[311556545,1705236635209,-884.88,0.00023,2]
[311556546,1705236635219,-241.673,0.00023,2]
[311556547,1705236635229,-536.672,0.00023,2]
[311556548,1705236635240,-8131.481,0.00023,2]
[311556549,1705236635249,-19688.0,0.00023,2]
[311556550,1705236635260,-5609.504,0.00023,2]
[311556551,1705236635270,-2903.0,0.00023,2]
[311556552,1705236635279,-4202.612,0.00023,2]
[311556553,1705236635290,-5888.336,0.00023,2]
[311556554,1705236635300,-42179.0,0.00023,2]
[311556555,1705236635310,-2271.0,0.00023,2]
[311556556,1705236635319,-215.0,0.00023,2]
[311556557,1705236635329,-150.0,0.00023,2]
[311556558,1705236635339,-1068.075,0.00023,2]
[311556559,1705236635349,-152.0,0.00023,2]
[311556560,1705236635359,-150.0,0.00023,2]
[311556561,1705236635369,-609.91345969,0.00023,2]
[311556562,1705236635384,-137833.98293254,0.00023,2]
[311556563,1705236635396,-1690.5686565,0.00023,2]
[311556564,1705236635409,-730.74007093,0.00023,2]
[311556565,1705236638307,-153.255,0.00023,2]
[311556566,1705236638317,-4131141.30102363,0.00023,2]
[311556567,1705236638327,-58267.37839849,0.00023,2]
[311556568,1705236638337,-781482.10705538,0.00023,2]
[311556569,1705236638386,-152.536,0.00023,2]
[311556570,1705236638401,-1155.59925265,0.00023,2]
[311556571,1705236638414,-307.40360557,0.00023,2]
[311556572,1705236638426,-633.3355032,0.00023,2]
[311556573,1705236638445,-1016.94337793,0.00023,2]
[311556574,1705236638525,-535.94,0.00023,2]
[311556575,1705236639788,-153.28,0.00023,2]
[311556576,1705236639797,-153.0,0.00023,2]
[311556578,1705236639807,-23727.3480895,0.00023,2]
[311556580,1705236639819,-51217.81569671,0.00023,2]
[311556582,1705236639831,-94809.25345919,0.00023,2]
[311556584,1705236639843,-174676.78441039,0.00023,2]
[311556585,1705236639853,-932863.05053807,0.00023,2]
[311556596,1705236640832,-629.64240114,0.00023,2]
[311556598,1705236640844,-1353.84,0.00023,2]
[311556620,1705236641988,-9170.45654364,0.00023,2]
[311556622,1705236641999,-528.5269001,0.00023,2]
[311556624,1705236642011,-297.1035,0.00023,2]
[311556626,1705236642023,-680.54889996,0.00023,2]
[311556627,1705236642034,-661.38219397,0.00023,2]
[311556628,1705236642046,-321.88887296,0.00023,2]
[311556629,1705236642058,-1139.11643078,0.00023,2]
[311556630,1705236642069,-301.83235067,0.00023,2]
[311556631,1705236642080,-46130.07600001,0.00023,2]
[311556632,1705236642091,-364.69997,0.00023,2]
[311556633,1705236642107,-1288.47644143,0.00023,2]
[311556634,1705236642193,-397.63098387,0.00023,2]
[311556635,1705236642204,-1779.28274773,0.00023,2]
[311556641,1705236643365,-1750.08934919,0.00023,2]
[311556642,1705236643377,-443.07349567,0.00023,2]
[311556643,1705236643402,-4554.70727346,0.00023,2]
[311556644,1705236643420,-1319.84332467,0.00023,2]
[311556645,1705236643432,-3631.33262001,0.00023,2]
[311556646,1705236643443,-5214.07871839,0.00023,2]
[311556647,1705236643464,-4626.67793979,0.00023,2]
[311556648,1705236643475,-37807.3862916,0.00023,2]
[311556649,1705236643525,-112525.33578151,0.00023,2]
[311556677,1705236646483,-200.0,0.00023,2]
[311556679,1705236646493,-876.6485287,0.00023,2]
[311556693,1705236646606,-239.567,0.00023,2]
[311556695,1705236646616,-1253783.6603353,0.00023,2]
[311556696,1705236646625,-368078.46152704,0.00023,2]
[311556698,1705236646637,-432.54395812,0.00023,2]
[311556701,1705236646674,-357.48454765,0.00023,2]
[311556721,1705236670624,943.17158332,0.00020698,5]
[311556725,1705236847462,499.999999,0.0002,2]
[311556726,1705236983964,1031.40550924,0.0002,2]
[311556727,1705236989696,155.0,0.0002,2]
[311556728,1705236990119,291.48413995,0.0002,2]
[311556729,1705236991379,221.36139,0.0002,2]
[311556730,1705236993790,159.22381173,0.0002,2]
[311556731,1705237033838,176.08,0.00020233,2]
[311556732,1705237144162,196.66,0.00022026,10]
[311556733,1705237308417,213.14,0.00022012,2]
[311556738,1705237333484,160.98,0.00022029,2]
[311556739,1705237340234,20000.0,0.00022,2]
[311556740,1705237354198,173.0,0.0001995,2]
[311556744,1705237382091,537.65,0.00021906,2]
[311556747,1705237412226,150.0,0.00021884,2]
[311556757,1705237466129,167.27,0.00019984,2]
[311556761,1705237474435,207.0,0.00021625,2]
[311556764,1705237579713,173.3,0.00022047,2]
[311556765,1705237583166,20000.0,0.00022,2]
[311556766,1705237601534,20000.0,0.00022,2]
[311556767,1705237614193,20000.0,0.00022,2]
[311556768,1705237627327,20000.0,0.00022,2]
[311556769,1705237734896,198.93,0.00021876,2]
[311556773,1705237782235,162.16,0.00022064,2]
[311556774,1705237782792,198.84,0.00021845,2]
[311556775,1705237783175,198.84,0.0002196,2]
[311556776,1705237783402,198.84,0.00022075,2]
[311556777,1705237803947,569.88,0.00021799,2]
[311556781,1705237831528,-527.51955933,0.00022133,2]
[311556782,1705237831537,-102.34044067,0.00022134,2]
[311556783,1705237831548,-422.05138947,0.00022134,2]
[311556784,1705237831558,-150.0,0.00022135,2]
[311556785,1705237831567,-1657.54379474,0.00022154,2]
[311556786,1705237831576,-198.84,0.0002219,2]
[311556787,1705237831586,-161.85437997,0.00022227,2]
[311556788,1705237831764,-0.84725676,0.00022227,2]
[311556789,1705237831776,-0.18836327,0.00022227,2]
[311556790,1705237831785,-160.98,0.00022229,2]
[311556791,1705237831795,-167.27,0.00022247,2]
[311556792,1705237831805,-198.84,0.00022305,2]
[311556793,1705237831814,-198.84,0.0002242,2]
[311556794,1705237831824,-160.98,0.00022429,2]
[311556795,1705237831834,-836.7923688,0.00022444,3]
[311556796,1705237831843,-499.99,0.00022444,2]
[311556797,1705237831852,-198.84,0.00022535,2]
[311556798,1705237831863,-160.98,0.00022629,2]
[311556799,1705237831872,-198.84,0.0002265,2]
[311556800,1705237831881,-198.84,0.00022765,2]
[311556801,1705237831890,-150.0,0.00022767,2]
[311556802,1705237831899,-3943.49336319,0.00022768,2]
[311556803,1705237831911,-524.83758028,0.00022768,2]
[311556804,1705237831931,-421.90220378,0.00022768,2]
[311556805,1705237831944,-1374.0,0.00022768,2]
[311556806,1705237831960,-981.98800468,0.00022768,2]
[311556807,1705237831973,-456.25811503,0.00022768,2]
[311556808,1705237831985,-1417.52073304,0.00022768,2]
[311556809,1705237831996,-1.9541542,0.00022768,2]
[311556810,1705237832025,-705.09836731,0.00022768,2]
[311556811,1705237832038,-419.37593271,0.00022768,2]
[311556812,1705237832048,-200.0,0.00022816,2]
[311556813,1705237832058,-800.0,0.00022816,2]
[311556814,1705237832068,-500.0,0.00022816,2]
[311556815,1705237832079,-160.98,0.0002283,2]
[311556816,1705237832088,-198.93,0.00022854,2]
[311556817,1705237832099,-198.84,0.0002288,2]
[311556818,1705237832109,-39780.2113,0.00022897,2]
[311556819,1705237832120,-25278.39446683,0.00022897,2]
[311556820,1705237832133,-7984.16312265,0.00022897,2]
[311556821,1705237832145,-1453.23766428,0.00022897,2]
[311556822,1705237832171,-1042.36206145,0.00022897,2]
[311556823,1705237832184,-1878.38681461,0.00022897,2]
[311556824,1705237832211,-658.46,0.00022897,2]
[311556825,1705237832223,-624.13,0.00022897,2]
[311556826,1705237832235,-328.64192235,0.00022897,2]
[311556827,1705237832247,-2544.41892805,0.00022897,2]
[311556828,1705237832259,-58207.80501978,0.00022897,2]
[311556829,1705237832268,-1691.5985,0.00022898,2]
[311556830,1705237832278,-2305.8843,0.00022898,2]
[311556831,1705237832287,-191.59750761,0.00022898,2]
[311556832,1705237832298,-597.74646562,0.00022898,2]
[311556833,1705237832307,-195.25517109,0.00022898,2]
[311556834,1705237832317,-597.74646558,0.00022898,2]
[311556835,1705237832327,-597.74646558,0.00022898,2]
[311556836,1705237832337,-597.74646558,0.00022899,2]
[311556837,1705237832346,-597.74646558,0.00022899,2]
[311556838,1705237832356,-597.74646558,0.00022899,2]
[311556839,1705237832367,-597.74646558,0.00022899,2]
[311556840,1705237832377,-597.74646558,0.00022899,2]
[311556841,1705237832387,-597.74646558,0.00022899,2]
[311556842,1705237832396,-597.74646558,0.000229,2]
[311556843,1705237832406,-383.0478,0.000229,2]
[311556844,1705237832416,-164.2189,0.000229,2]
[311556845,1705237832425,-597.74646558,0.000229,2]
[311556846,1705237832435,-250.0,0.000229,2]
[311556847,1705237832445,-2500.0,0.000229,2]
[311556848,1705237832454,-191.5975076,0.000229,2]
[311556849,1705237832464,-5180.515325,0.000229,2]
[311556850,1705237832473,-597.74646558,0.000229,2]
[311556851,1705237832483,-6037.14,0.00022907,2]
[311556852,1705237832493,-592.112,0.00022907,2]
[311556853,1705237832502,-5572.0,0.00022907,2]
[311556854,1705237832511,-462.948,0.00022907,2]
[311556855,1705237832522,-2269.0,0.00022907,2]
[311556856,1705237832532,-162.89,0.00022968,2]
[311556857,1705237832541,-198.84,0.00022995,2]
[311556858,1705237832551,-505265.21634996,0.00022997,2]
[311556859,1705237832560,-76157.91188282,0.00022998,2]
[311556860,1705237832572,-1986.91884125,0.00022998,2]
[311556861,1705237832584,-313.12930109,0.00022998,2]
[311556871,1705237833230,-134279.74815512,0.00022998,2]
[311556872,1705237833242,-518.08275661,0.00022998,2]
[311556874,1705237837754,-909.35813974,0.00022472,2]
[311556875,1705237837763,-42248.24293079,0.00022998,2]
[311556876,1705237837772,-156.77772259,0.00022998,2]
[311556877,1705237837781,-371.98608374,0.00022998,2]
[311556878,1705237837790,-165.64098606,0.00022998,2]
[311556879,1705237837799,-195.03480018,0.00022998,2]
[311556880,1705237837809,-156.54143976,0.00022998,2]
[311556881,1705237837818,-2774.19153734,0.00022998,2]
[311556882,1705237837828,-599.79806811,0.00022998,2]
[311556883,1705237837837,-362.12981024,0.00022998,2]
[311556884,1705237837847,-1442.43348609,0.00022998,2]
[311556885,1705237837856,-200.0,0.00022998,2]
[311556886,1705237837867,-208.152724,0.00022998,2]
[311556887,1705237837880,-1976.26450292,0.00022998,2]
[311556888,1705237837889,-833136.38301985,0.00022998,2]
[311556889,1705237837899,-397.21856661,0.00022998,2]
[311556890,1705237837909,-309.8016069,0.00022998,2]
[311556891,1705237837918,-386.26961565,0.00022998,2]
[311556892,1705237837928,-269.69370419,0.00022998,2]
[311556894,1705237837937,-250.11610427,0.00022998,2]
[311556896,1705237837946,-10050.2223547,0.00022998,2]
[311556898,1705237837956,-17583.6372825,0.00022998,2]
[311556899,1705237837965,-3074.254779,0.00022998,2]
[311556900,1705237837975,-4427.5722052,0.00022998,2]
[311556901,1705237837984,-256.64086076,0.00022999,2]
[311556903,1705237837994,-254.7545,0.00022999,2]
[311556904,1705237838005,-288940.59187123,0.00022999,2]
[311556905,1705237838015,-300.0,0.00022999,2]
[311556906,1705237838024,-302.45179524,0.00022999,2]
[311556907,1705237838033,-3292.32224499,0.00022999,2]
[311556908,1705237838043,-300.0,0.00022999,2]
[311556910,1705237838052,-300.0,0.00022999,2]
[311556912,1705237838061,-300.0,0.00022999,2]
[311556913,1705237838071,-300.0,0.00022999,2]
[311556914,1705237838082,-300.0,0.00022999,2]
[311556915,1705237838092,-300.0,0.00022999,2]
[311556916,1705237838101,-300.0,0.00022999,2]
[311556917,1705237838111,-300.0,0.00022999,2]
[311556918,1705237838121,-300.0,0.00022999,2]
[311556919,1705237838130,-300.0,0.00022999,2]
[311556920,1705237838140,-300.0,0.00022999,2]
[311556921,1705237838150,-300.0,0.00022999,2]
[311556922,1705237838159,-300.0,0.00022999,2]
[311556923,1705237838169,-300.0,0.00022999,2]
[311556924,1705237838178,-300.0,0.00022999,2]
[311556925,1705237838187,-300.0,0.00022999,2]
[311556926,1705237838197,-223.724,0.00023,2]
[311556927,1705237838206,-153.126,0.00023,2]
[311556928,1705237838219,-150.0,0.00023,2]
[311556929,1705237838229,-151.054,0.00023,2]
[311556930,1705237838238,-500.331,0.00023,2]
[311556931,1705237838248,-222.545,0.00023,2]
[311556932,1705237838258,-1852.0,0.00023,2]
[311556933,1705237838267,-945.0,0.00023,2]
[311556934,1705237838277,-835.0,0.00023,2]
[311556935,1705237838286,-1234.0,0.00023,2]
[311556936,1705237838296,-1252.0,0.00023,2]
[311556937,1705237838305,-203.763,0.00023,2]
[311556938,1705237838315,-425.0,0.00023,2]
[311556939,1705237838324,-996.0,0.00023,2]
[311556940,1705237838334,-1930.0,0.00023,2]
[311556941,1705237838344,-879.0,0.00023,2]
[311556942,1705237838355,-235.0,0.00023,2]
[311556943,1705237838364,-318.0,0.00023,2]
[311556944,1705237838374,-507.0,0.00023,2]
[311556945,1705237838384,-1638717.48514767,0.00023,2]
[311556946,1705237838393,-304838.34531145,0.00023,2]
[311556947,1705237838402,-188375.09837543,0.00023,2]
[311556948,1705237838411,-396577.14813276,0.00023,2]
[311556949,1705237838425,-456.35152185,0.00023,2]
[311556950,1705237838469,-13502.62648838,0.00023,2]
[311556951,1705237838479,-151.0,0.00023,7]
[311556952,1705237838489,-151.0,0.00023,7]
[311556953,1705237838499,-151.0,0.00023,7]
[311556954,1705237838508,-151.0,0.00023,7]
[311556955,1705237838518,-151.0,0.00023,7]
[311556956,1705237838527,-15871.70699465,0.00023,2]
[311556957,1705237838540,-1510.9760536,0.00023,2]
[311556958,1705237838555,-588.99961556,0.00023,2]
[311556959,1705237838567,-251.09249985,0.00023,2]
[311556960,1705237838583,-266.7,0.00023,2]
[311556982,1705237842787,-5181.33582048,0.00023,2]
[311556995,1705237845632,-3275.250005,0.00023,2]
[311557013,1705237963912,150.54,0.00020347,2]
[311557016,1705238244050,544.09,0.00022092,2]
[311557018,1705238332694,156.86,0.00022068,2]
[311557019,1705238353865,2000.0,0.0002,2]
[311557020,1705238380938,2040.0,0.00022,2]
[311557024,1705238429729,160.59,0.00020165,2]
[311557039,1705238669280,244.8,0.0002204,2]
[311557044,1705238675742,564.72,0.00022026,2]
[311557060,1705238760606,160.13,0.00022024,2]
[311557068,1705238884492,206.0,0.00021889,2]
[311557074,1705239017909,173.3,0.00022022,2]
[311557075,1705239022963,152.56,0.00019942,2]
[311557076,1705239025672,259.67457195,0.00021889,2]
[311557091,1705239031717,-152.56,0.00022206,2]
[311557092,1705239031736,-159.96,0.00022232,2]
[311557093,1705239031751,-161.79,0.00022299,2]
[311557094,1705239031766,-390.37441708,0.000224,2]
[311557095,1705239031789,-1150.0,0.000224,2]
[311557096,1705239031854,-459.62558292,0.000224,2]
[311557097,1705239031869,-180.44200708,0.00022499,2]
[311557098,1705239031887,-119.55799292,0.00022499,2]
[311557099,1705239031903,-135.92329028,0.000225,2]
[311557100,1705239031923,-1183.42344449,0.000225,2]
[311557101,1705239031961,-14576.68978492,0.000225,2]
[311557129,1705239038380,-533.01121006,0.000225,2]
[311557131,1705239038395,-380.75647757,0.000225,2]
[311557136,1705239038431,-1319.04852,0.000225,2]
[311557139,1705239038441,-1120.6283,0.000225,2]
[311557147,1705239038509,-1273.19236374,0.000225,2]
[311557156,1705239038579,-501.13137183,0.000225,2]
[311557166,1705239040293,-1424.0,0.000225,2]
[311557167,1705239040306,-1768.45637484,0.000225,2]
[311557168,1705239040407,-533.96922861,0.000225,2]
[311557169,1705239040418,-12216.76963366,0.000225,2]
[311557170,1705239040427,-150.0,0.00022727,2]
[311557171,1705239040436,-328.12380494,0.00022727,2]
[311557172,1705239040445,-150.0,0.00022731,2]
[311557173,1705239040455,-150.0,0.00022735,2]
[311557174,1705239040464,-300.0,0.0002274,2]
[311557175,1705239040474,-250.3253178,0.00022742,2]
[311557176,1705239040483,-150.0,0.00022743,2]
[311557177,1705239040492,-150.0,0.00022746,2]
[311557178,1705239040501,-150.0,0.00022748,2]
[311557179,1705239040510,-150.0,0.00022749,2]
[311557180,1705239040519,-150.0,0.0002275,2]
[311557181,1705239040528,-150.0,0.00022754,2]
[311557182,1705239040537,-150.0,0.00022759,2]
[311557183,1705239040546,-150.0,0.0002276,2]
[311557184,1705239040556,-150.0,0.0002276,2]
[311557185,1705239040565,-150.0,0.00022762,2]
[311557186,1705239040574,-150.0,0.00022764,2]
[311557187,1705239040583,-150.0,0.00022764,2]
[311557188,1705239040592,-150.0,0.00022769,2]
[311557189,1705239040602,-150.0,0.00022774,2]
[311557190,1705239040611,-150.0,0.0002278,2]
[311557191,1705239040621,-150.0,0.00022781,2]
[311557192,1705239040630,-308.55431529,0.00022786,3]
[311557193,1705239040642,-849.78108098,0.00022786,3]
[311557194,1705239040652,-513.12836649,0.00022786,2]
[311557195,1705239040675,-986.87163351,0.00022786,2]
[311557196,1705239040684,-150.0,0.00022791,2]
[311557197,1705239040693,-300.0,0.00022795,2]
[311557198,1705239040702,-150.0,0.00022799,2]
[311557199,1705239040712,-313.02636629,0.000228,2]
[311557200,1705239040724,-487.89363371,0.000228,2]
[311557201,1705239040733,-36.42694381,0.00022801,2]
[311557202,1705239041109,-263.57305619,0.00022801,2]
[311557203,1705239041119,-150.0,0.00022801,2]
[311557204,1705239041128,-150.0,0.00022804,2]
[311557205,1705239041138,-150.0,0.00022808,2]
[311557206,1705239041147,-150.0,0.00022809,2]
[311557207,1705239041156,-150.0,0.00022813,2]
[311557208,1705239041166,-500.0,0.00022815,2]
[311557209,1705239041175,-200.0,0.00022815,2]
[311557210,1705239041185,-500.0,0.00022816,2]
[311557211,1705239041194,-200.0,0.00022816,2]
[311557212,1705239041203,-500.0,0.00022816,2]
[311557213,1705239041212,-500.0,0.00022816,2]
[311557214,1705239041222,-500.0,0.00022816,2]
[311557215,1705239041231,-200.0,0.00022816,2]
[311557216,1705239041240,-200.0,0.00022816,2]
[311557217,1705239041250,-150.0,0.00022816,2]
[311557218,1705239041259,-300.0,0.00022818,2]
[311557219,1705239041268,-252.99454732,0.0002282,2]
[311557220,1705239041278,-150.0,0.00022822,2]
[311557221,1705239041287,-150.0,0.00022828,2]
[311557222,1705239041296,-300.0,0.00022829,2]
[311557223,1705239041305,-190.67946795,0.00022829,2]
[311557224,1705239041315,-150.0,0.00022835,2]
[311557225,1705239041324,-150.0,0.00022836,2]
[311557226,1705239041334,-150.0,0.00022837,2]
[311557227,1705239041343,-150.0,0.00022847,2]
[311557228,1705239041353,-150.0,0.00022851,2]
[311557229,1705239041364,-150.0,0.00022852,2]
[311557230,1705239041373,-152.84068148,0.00022853,2]
[311557231,1705239041382,-150.0,0.00022853,2]
[311557232,1705239041390,-150.0,0.00022854,2]
[311557233,1705239041399,-150.0,0.00022855,2]
[311557234,1705239041408,-150.0,0.00022856,2]
[311557235,1705239041417,-300.0,0.00022862,2]
[311557236,1705239041426,-150.0,0.00022865,2]
[311557237,1705239041434,-150.0,0.00022866,2]
[311557238,1705239041444,-150.0,0.00022873,2]
[311557239,1705239041454,-150.0,0.00022888,2]
[311557240,1705239041463,-150.0,0.00022895,2]
[311557241,1705239041472,-250.0,0.000229,2]
[311557242,1705239041481,-184.77937279,0.000229,2]
[311557243,1705239041491,-936.12,0.000229,2]
[311557244,1705239041500,-401.38,0.000229,2]
[311557245,1705239041510,-574.79252277,0.000229,2]
[311557246,1705239041520,-129265.41586388,0.000229,2]
[311557247,1705239041528,-761.64847565,0.000229,2]
[311557248,1705239041538,-150.0,0.00022901,2]
[311557249,1705239041547,-150.0,0.00022919,2]
[311557250,1705239041556,-150.0,0.00022922,2]
[311557251,1705239041565,-150.0,0.00022922,2]
[311557252,1705239041574,-150.0,0.00022922,2]
[311557253,1705239041584,-150.0,0.00022925,2]
[311557254,1705239041593,-150.0,0.00022926,2]
[311557255,1705239041604,-150.0,0.00022929,2]
[311557256,1705239041613,-150.0,0.00022931,2]
[311557257,1705239041623,-150.0,0.00022946,2]
[311557258,1705239041632,-150.0,0.0002295,2]
[311557259,1705239041641,-150.0,0.00022954,2]
[311557260,1705239041650,-150.0,0.00022956,2]
[311557261,1705239041659,-150.0,0.00022957,2]
[311557262,1705239041668,-150.0,0.00022957,2]
[311557263,1705239041677,-150.0,0.00022965,2]
[311557264,1705239041686,-150.0,0.00022965,2]
[311557265,1705239041695,-702.52605276,0.0002297,2]
[311557266,1705239041705,-150.0,0.00022972,2]
[311557267,1705239041715,-150.0,0.00022974,2]
[311557268,1705239041727,-150.0,0.0002298,2]
[311557269,1705239041736,-150.0,0.00022981,2]
[311557270,1705239041745,-150.0,0.00022982,2]
[311557271,1705239041754,-150.0,0.00022992,2]
[311557272,1705239041763,-150.0,0.00022995,2]
[311557273,1705239041774,-150.0,0.00022995,2]
[311557274,1705239041931,-718.63,0.00022997,2]
[311557275,1705239041952,-1362.90944747,0.00022998,2]
[311557276,1705239041961,-939.56400894,0.00022998,2]
[311557277,1705239041971,-992.10827887,0.00022998,4]
[311557278,1705239041981,-72686.4395076,0.00022998,2]
[311557279,1705239041991,-7450.60829032,0.00022999,2]
[311557280,1705239042001,-300.0,0.00022999,2]
[311557281,1705239042010,-300.0,0.00022999,2]
[311557282,1705239042019,-300.0,0.00022999,2]
[311557283,1705239042029,-300.0,0.00022999,2]
[311557284,1705239042038,-300.0,0.00022999,2]
[311557285,1705239042047,-300.0,0.00022999,2]
[311557286,1705239042057,-177752.01693384,0.00023,2]
[311557287,1705239042066,-362.842,0.00023,2]
[311557288,1705239042075,-2649157.00370944,0.00023,2]
[311557289,1705239042085,-155.91313982,0.00023,2]
[311557290,1705239042094,-4462403.48963358,0.00023,2]
[311557291,1705239042104,-20000.0,0.00023,2]
[311557292,1705239042114,-151.0,0.00023,7]
[311557293,1705239042123,-151.0,0.00023,7]
[311557294,1705239042132,-151.0,0.00023,7]
[311557295,1705239042142,-200.0,0.00023,2]
[311557296,1705239042151,-332.2099903,0.00023,7]
[311557297,1705239042160,-2000.0,0.00023,2]
[311557298,1705239042169,-200.0,0.00023,2]
[311557299,1705239042178,-2000.0,0.00023,2]
[311557300,1705239042187,-200.0,0.00023,2]
[311557301,1705239042196,-2000.0,0.00023,2]
[311557302,1705239042205,-200.0,0.00023,2]
[311557303,1705239042214,-330.83,0.00023,2]
[311557304,1705239042224,-1774.6962244,0.00023003,2]
[311557305,1705239042233,-1705.7232871,0.00023003,2]
[311557306,1705239042242,-244.8,0.00023019,2]
[311557307,1705239042252,-160.98,0.0002303,2]
[311557308,1705239042261,-500.0,0.00023097,2]
[311557309,1705239042270,-198.84,0.0002311,2]
[311557310,1705239042279,-7766.76787986,0.0002313,2]
[311557311,1705239042288,-1246.30898269,0.00023143,2]
[311557312,1705239042297,-164.72,0.00023177,2]
[311557313,1705239042306,-909.35813975,0.00023209,2]
[311557314,1705239042315,-198.84,0.00023225,2]
[311557315,1705239042324,-2000.0,0.0002323,2]
[311557316,1705239042333,-200.0,0.0002323,2]
[311557317,1705239042342,-2000.0,0.0002323,2]
[311557318,1705239042352,-2000.0,0.0002323,2]
[311557319,1705239042362,-200.0,0.0002323,2]
[311557320,1705239042371,-160.98,0.0002323,2]
[311557321,1705239042380,-578.76053168,0.00023288,2]
[311557322,1705239042389,-500.0,0.00023288,2]
[311557323,1705239042398,-500.0,0.00023288,2]
[311557324,1705239042408,-500.0,0.00023288,2]
[311557325,1705239042417,-500.0,0.00023288,2]
[311557326,1705239042426,-500.0,0.00023288,2]
[311557327,1705239042435,-500.0,0.00023288,2]
[311557328,1705239042445,-500.0,0.00023288,2]
[311557329,1705239042455,-500.0,0.00023288,2]
[311557330,1705239042465,-500.0,0.00023288,2]
[311557331,1705239042475,-500.0,0.00023288,2]
[311557332,1705239042484,-377.8564587,0.00023288,2]
[311557333,1705239042493,-500.0,0.00023288,2]
[311557334,1705239042502,-500.0,0.00023288,2]
[311557335,1705239042511,-500.0,0.00023288,2]
[311557336,1705239042520,-500.0,0.00023288,2]
[311557337,1705239042529,-500.0,0.00023288,2]
[311557338,1705239042538,-500.0,0.00023288,2]
[311557339,1705239042547,-500.0,0.00023288,2]
[311557340,1705239042556,-500.0,0.00023288,2]
[311557341,1705239042565,-500.0,0.00023288,2]
[311557342,1705239042574,-500.0,0.00023288,2]
[311557343,1705239042584,-500.0,0.00023288,2]
[311557344,1705239042593,-500.0,0.00023288,2]
[311557345,1705239042602,-500.0,0.00023288,2]
[311557347,1705239042612,-500.0,0.00023288,2]
[311557349,1705239042621,-500.0,0.00023288,2]
[311557351,1705239042630,-500.0,0.00023288,2]
[311557353,1705239042639,-500.0,0.00023288,2]
[311557355,1705239042648,-500.0,0.00023288,2]
[311557359,1705239042658,-500.0,0.00023288,2]
[311557362,1705239042667,-500.0,0.00023288,2]
[311557365,1705239042677,-500.0,0.00023288,2]
[311557366,1705239042686,-500.0,0.00023288,2]
[311557367,1705239042695,-634.72692111,0.00023288,2]
[311557368,1705239042704,-500.0,0.00023288,2]
[311557369,1705239042713,-500.0,0.00023288,2]
[311557370,1705239042722,-500.0,0.00023288,2]
[311557371,1705239042731,-500.0,0.00023288,2]
[311557372,1705239042740,-500.0,0.00023288,2]
[311557373,1705239042749,-500.0,0.00023288,2]
[311557374,1705239042759,-203.44961925,0.00023288,2]
[311557375,1705239042768,-500.0,0.00023288,2]
[311557376,1705239042777,-500.0,0.00023288,2]
[311557377,1705239042787,-500.0,0.00023288,2]
[311557378,1705239042796,-500.0,0.00023288,2]